bitfinex-derivatives/quotes_ETHF0:USTF0_20250321
["timestamp","ask_amount","ask_price","bid_price","bid_amount"]
[1742564886800,2.108,1952.1,1951.9,1.33077813]
[1742564887005,1.3916,1952.0,1951.9,2.35590813]
[1742564887205,2.41668,1952.0,1951.9,1.33077813]
[1742564887807,1.3916,1952.0,1951.9,2.35590813]
[1742564888608,2.41668,1952.0,1951.9,1.33077813]
[1742564889012,2.41668,1952.0,1951.9,2.35590813]
[1742564889215,3.2078,1952.3,1952.1,1.02502]
[1742564889512,4.023,1952.2,1952.1,1.02502]
[1742564890614,2.4165,1952.4,1952.3,1.02492]
[1742564890932,11.2123,1952.5,1952.2,5.77018]
[1742564890933,4.015,1952.5,1952.2,5.77018]
[1742564891112,1.02489,1952.4,1952.3,1.0249]
[1742564891309,1.02487,1952.4,1952.3,1.02487]
[1742564891506,1.38,1952.4,1952.3,1.02487]
[1742564891710,1.38,1952.4,1952.1,1.02499]
[1742564891711,1.02499,1952.2,1952.1,1.02499]
[1742564892121,1.02502,1952.1,1952.0,4.23284]
[1742564892312,1.02502,1952.1,1952.0,1.02504]
[1742564892513,4.007,1952.2,1952.1,1.02502]
[1742564892908,4.003,1952.4,1952.3,1.02492]
[1742564893114,1.025,1952.2,1952.1,1.025]
[1742564894120,1.02487,1952.4,1952.3,1.02492]
[1742564894322,1.3087,1952.4,1952.3,1.02492]
[1742564894521,5.03085,1952.5,1952.4,1.02487]
[1742564894821,3.9119,1952.6,1952.4,1.02487]
[1742564894822,1.3087,1952.6,1952.5,1.02481]
[1742564895020,1.7214,1952.8,1952.4,5.76996]
[1742564895331,5.02971,1952.7,1952.6,1.02476]
[1742564895521,0.00767813,1953.1,1952.6,3.2078]
[1742564895725,0.00767813,1953.1,1953.0,1.02455]
[1742564896324,3.2078,1953.7,1953.6,1.02424]
[1742564896621,2.37282,1953.9,1953.5,3.2078]
[1742564896826,1.11381168,1953.8,1953.7,1.02417]
[1742564897128,3.2078,1954.3,1954.1,1.02395]
[1742564897426,1.4265,1954.2,1954.1,1.02398]
[1742564897729,3.2078,1954.3,1954.2,1.02392]
[1742564897925,3.2078,1954.3,1953.9,6.44807]
[1742564898227,1.43417813,1954.4,1954.3,1.02387]
[1742564898428,12.40711,1954.8,1954.3,1.02387]
[1742564898429,4.048,1955.4,1954.3,7.2208]
[1742564898732,1.02366,1954.7,1954.3,3.2078]
[1742564898920,2.42571,1954.6,1954.4,41.82377]
[1742564899121,1.402,1954.6,1954.4,41.82377]
[1742564899431,4.051,1954.9,1954.8,1.02361]
[1742564899623,6.56618023,1954.9,1954.7,1.02363]
[1742564899823,1.402,1954.9,1954.8,1.02361]
[1742564900022,0.00767813,1955.0,1954.9,1.02356]
[1742564900219,0.00767813,1955.0,1954.9,4.23136]
[1742564902024,0.00767813,1955.0,1954.9,3.2078]
[1742564902223,5.07420813,1955.0,1954.8,1.02361]
[1742564902425,4.05067813,1955.0,1954.9,1.02356]
[1742564902928,4.05067813,1955.0,1954.8,3.2078]
[1742564903227,3.2078,1954.9,1954.4,3.2078]
[1742564903427,1.3444,1954.9,1954.6,3.2078]
[1742564903730,1.02361,1954.8,1954.7,1.3387]
[1742564903929,1.3444,1954.9,1954.4,3.2078]
[1742564904221,1.3444,1954.7,1954.4,3.2078]
[1742564904428,1.3444,1954.7,1954.3,0.00767813]
[1742564904429,1.02382,1954.4,1954.3,0.00767813]
[1742564905119,1.11346986,1954.4,1954.3,0.00767813]
[1742564905423,2.55968,1954.3,1953.7,0.685]
[1742564905617,4.14264986,1954.2,1953.8,1.4254]
[1742564905822,1.02408,1954.0,1953.8,4.6332]
[1742564906122,1.02418,1953.8,1953.6,3.2078]
[1742564906321,1.02419,1953.7,1953.6,4.6332]
[1742564906929,1.40887813,1953.8,1953.6,4.6332]
[1742564907119,1.40887813,1953.8,1953.7,1.02419]
[1742564907323,2.43300813,1953.8,1953.7,1.4254]
[1742564907524,1.40887813,1953.8,1953.7,1.4254]
[1742564907833,0.00767813,1953.8,1953.7,2.44959]
[1742564908032,0.00767813,1953.8,1953.7,1.4254]
[1742564908226,0.00767813,1953.8,1953.7,2.44959]
[1742564908926,1.02398,1954.1,1953.9,1.02405]
[1742564909134,1.4004,1954.2,1953.9,1.02405]
[1742564909135,1.02404,1954.0,1953.9,3.2078]
[1742564909321,1.4004,1954.0,1953.9,1.02408]
[1742564909627,4.047,1954.4,1953.9,1.3237]
[1742564909840,1.02393,1954.2,1954.0,1.02403]
[1742564910024,1.02393,1954.2,1954.1,1.02398]
[1742564910227,1.4004,1954.3,1954.2,1.02392]
[1742564910228,1.40807813,1954.3,1954.2,1.02392]
[1742564910429,4.05267813,1954.3,1954.1,1.3237]
[1742564910630,1.02392,1954.2,1954.1,1.3237]
[1742564910825,1.4004,1954.2,1954.1,2.34768]
[1742564911029,0.00767813,1954.3,1954.2,1.02392]
[1742564911225,0.00767813,1954.3,1954.2,2.32382]
[1742564911431,0.00767813,1954.3,1954.2,5.53162]
[1742564911729,3.2078,1955.2,1954.2,7.0077]
[1742564911931,0.4128665,1955.7,1955.1,3.2078]
[1742564912137,1.343,1955.6,1955.3,3.2078]
[1742564912336,1.02335,1955.3,1955.2,1.2999]
[1742564912536,1.343,1955.6,1955.2,5.53107]
[1742564912730,1.02333,1955.4,1955.2,5.53107]
[1742564912930,4.07,1955.4,1955.3,1.02335]
[1742564913234,5.09329,1955.4,1955.2,4.51537813]
[1742564913428,4.07,1955.4,1955.3,1.02335]
[1742564913933,5.413,1955.4,1955.3,1.02335]
[1742564914131,20.9688,1955.4,1955.2,8.13e-06]
[1742564914338,1.11293916,1955.3,1955.2,8.13e-06]
[1742564914527,3.20443916,1955.3,1955.2,8.13e-06]
[1742564914735,5.70443916,1955.3,1955.2,8.13e-06]
[1742564916337,15.55243916,1955.3,1955.2,8.13e-06]
[1742564917332,17.14348167,1955.3,1955.2,8.13e-06]
[1742564917727,19.64348167,1955.3,1955.2,8.13e-06]
[1742564917928,13.05248167,1955.3,1955.2,8.13e-06]
[1742564918236,19.64348167,1955.3,1955.2,8.13e-06]
[1742564918834,19.64348216,1955.3,1955.2,8.13e-06]
[1742564920638,19.64348529,1955.3,1955.2,8.13e-06]
[1742564920834,1.02375,1954.6,1954.4,2.405]
[1742564921035,5.10363,1954.8,1954.6,1.02368]
[1742564921241,5.10363,1954.8,1954.7,1.3993]
[1742564921444,4.16963063,1954.8,1954.3,3.2078]
[1742564921740,1.02377,1954.5,1954.4,1.3993]
[1742564922046,5.10477,1954.5,1954.4,1.3993]
[1742564922938,1.02382,1954.4,1954.3,0.00767813]
[1742564923139,5.61856719,1954.4,1954.3,0.00767813]
[1742564923448,1.02403,1954.0,1953.9,3.2078]
[1742564923741,4.074,1954.0,1953.9,4.23188]
[1742564924138,1.02385,1954.4,1953.9,8.26792]
[1742564924338,1.02385,1954.4,1953.8,2.56028]
[1742564924339,1.02392,1954.2,1954.1,4.23176]
[1742564924541,1.02389,1954.3,1954.2,1.02391]
[1742564924842,7.98816,1954.4,1954.0,1.02401]
[1742564925039,5.4286,1954.4,1953.9,5.76799]
[1742564925233,5.4286,1954.4,1954.1,3.2078]
[1742564925234,1.02392,1954.3,1954.1,3.2078]
[1742564925430,1.02392,1954.2,1954.1,3.2078]
[1742564925630,3.99809796,1954.2,1953.8,4.94056813]
[1742564925937,1.02407,1954.0,1953.8,4.94056813]
[1742564926240,1.02408,1953.9,1953.8,3.21547813]
[1742564926545,1.02408,1953.9,1953.8,0.00767813]
[1742564926737,0.08967255,1953.9,1953.8,0.00767813]
[1742564926937,4.085,1954.1,1953.8,3.21547813]
[1742564927239,5.10898,1954.1,1953.9,1.02405]
[1742564927539,1.02403,1954.0,1953.9,1.02405]
[1742564927741,1.02408,1953.9,1953.8,1.03178813]
[1742564928141,4.23188,1953.9,1953.8,0.00767813]
[1742564928340,1.02429,1953.5,1953.4,3.2078]
[1742564928541,1.02438,1953.4,1953.3,3.2078]
[1742564928846,4.091,1953.5,1953.4,1.02434]
[1742564929146,4.091,1953.5,1953.3,45.03215]
[1742564929347,4.091,1953.5,1953.4,1.02434]
[1742564929845,4.091,1953.5,1953.3,41.82436]
[1742564930043,4.091,1953.5,1953.3,45.03216]
[1742564930241,1.02439,1953.3,1953.2,1.68498813]
[1742564930437,4.091,1953.5,1953.2,3.86837813]
[1742564930643,4.084,1953.6,1953.4,3.2078]
[1742564930838,1.03196813,1953.5,1953.4,3.2078]
[1742564931045,0.00767813,1953.5,1953.4,4.23214]
[1742564931436,0.00767813,1953.5,1953.4,0.7122]
[1742564931636,1.02439,1953.3,1953.2,3.86837813]
[1742564932141,1.02439,1953.3,1953.2,0.00767813]
[1742564932340,2.36439,1953.3,1953.2,0.00767813]
[1742564933943,5.66189162,1953.3,1953.2,0.00767813]
[1742564934948,3.2078,1953.3,1953.2,0.00767813]
[1742564935246,4.081,1953.3,1953.2,1.03212813]
[1742564935747,4.079,1953.3,1953.2,1.03212813]
[1742564936144,0.00767813,1953.5,1953.4,1.02434]
[1742564936348,4.08667813,1953.5,1953.3,4.23217]
[1742564936645,4.08667813,1953.5,1953.2,0.72147813]
[1742564936844,5.11098813,1953.5,1953.3,4.23218]
[1742564937051,4.08667813,1953.5,1953.4,1.02434]
[1742564937247,4.08667813,1953.5,1953.2,0.72147813]
[1742564937552,4.08667813,1953.5,1953.4,1.02434]
[1742564938051,0.00767813,1953.5,1953.4,1.02434]
[1742564938254,0.00767813,1953.5,1953.4,1.73834]
[1742564938750,1.03196813,1953.5,1953.4,0.714]
[1742564939052,0.00767813,1953.5,1953.4,1.73834]
[1742564939652,0.00767813,1953.5,1953.4,0.714]
[1742564939946,0.00767813,1953.5,1953.4,4.94614]
[1742564940148,0.00767813,1953.5,1953.4,0.714]
[1742564940357,0.00767813,1953.5,1953.4,1.73834]
[1742564940552,4.11667813,1953.5,1953.4,1.73834]
[1742564941353,0.00767813,1953.5,1953.4,1.73834]
[1742564941946,1.03196813,1953.5,1953.4,0.714]
[1742564942146,0.00767813,1953.5,1953.4,1.73834]
[1742564942345,0.00767813,1953.5,1953.4,0.714]
[1742564942548,0.00767813,1953.5,1953.4,1.73834]
[1742564942748,3.2078,1954.3,1953.4,3.214]
[1742564942951,2.55995,1954.1,1953.6,3.2078]
[1742564943155,1.02419,1953.7,1953.6,3.2078]
[1742564943357,1.02419,1953.7,1953.6,1.02422]
[1742564943653,9.91405,1953.9,1953.5,1.02429]
[1742564943852,1.02429,1953.5,1953.4,4.94613]
[1742564944250,1.02439,1953.3,1953.2,0.72147813]
[1742564944651,4.14,1953.3,1953.2,1.74592813]
[1742564944951,4.14,1953.3,1953.2,0.00767813]
[1742564944952,5.16439,1953.3,1953.2,0.00767813]
[1742564945155,1.0245,1953.1,1953.0,1.4015]
[1742564945357,4.14,1953.3,1953.1,1.02448]
[1742564945559,4.14,1953.3,1953.2,1.4015]
[1742564945560,5.16444,1953.3,1953.2,1.4015]
[1742564946257,4.14,1953.3,1953.2,2.42595]
[1742564946457,5.16439,1953.3,1953.2,1.4015]
[1742564947159,8.37219,1953.3,1953.2,1.4015]
[1742564947369,1.02471,1952.7,1952.6,0.6926]
[1742564947655,5.16373,1952.7,1952.2,6.45639]
[1742564947867,5.16373,1952.7,1952.5,1.02478]
[1742564947868,1.02476,1952.6,1952.5,1.02478]
[1742564948060,4.139,1952.7,1952.4,1.02483]
[1742564948253,4.139,1952.7,1952.3,2.5623]
[1742564948451,4.139,1952.7,1952.5,1.02477]
[1742564948657,1.02481,1952.5,1952.4,5.63864]
[1742564948957,5.17141813,1952.7,1952.5,1.02481]
[1742564949263,5.17141813,1952.7,1952.6,1.406]
[1742564949651,5.17141813,1952.7,1952.6,2.43076]
[1742564949859,5.17141813,1952.7,1952.6,1.406]
[1742564950252,4.14667813,1952.7,1952.6,1.406]
[1742564950462,5.17138813,1952.7,1952.6,1.406]
[1742564952160,6.51898813,1952.7,1952.6,1.406]
[1742564953372,4.14667813,1952.7,1952.6,1.406]
[1742564953868,4.14667813,1952.7,1952.6,2.43076]
[1742564954265,0.00767813,1952.7,1952.6,2.43076]
[1742564954467,4.10267813,1952.7,1952.6,2.43076]
[1742564954765,0.00767813,1952.7,1952.6,2.43076]
[1742564955758,1.03238813,1952.7,1952.6,1.406]
[1742564956558,1.02484,1952.5,1952.3,1.03255813]
[1742564956759,4.089,1952.5,1952.4,2.34567]
[1742564956962,4.089,1952.5,1952.4,5.55347]
[1742564957573,4.089,1952.5,1952.4,2.34567]
[1742564957870,4.089,1952.5,1952.4,5.55347]
[1742564958363,5.11381,1952.5,1952.4,4.5286]
[1742564958567,4.089,1952.5,1952.4,2.34567]
[1742564959967,5.11381,1952.5,1952.4,2.34567]
[1742564960660,4.089,1952.5,1952.4,2.34567]
[1742564960866,5.11381,1952.5,1952.4,2.34567]
[1742564961066,4.089,1952.5,1952.4,2.34567]
[1742564961773,5.11381,1952.5,1952.4,2.34567]
[1742564962174,4.089,1952.5,1952.4,2.34567]
[1742564962574,5.11381,1952.5,1952.4,2.34567]
[1742564962886,4.089,1952.5,1952.4,2.34567]
[1742564963473,1.02477,1952.6,1952.4,2.34567]
[1742564963474,5.08344813,1952.7,1952.6,1.02476]
[1742564963675,1.02476,1952.6,1952.5,3.2078]
[1742564963875,2.45066,1952.6,1952.5,4.23258]
[1742564964080,1.02487,1952.4,1952.3,4.24038813]
[1742564964376,1.02485,1952.5,1952.4,1.02481]
[1742564964576,5.06985,1952.5,1952.4,1.02481]
[1742564964773,4.045,1952.5,1952.4,1.02481]
[1742564964978,5.06981,1952.5,1952.4,1.02481]
[1742564965174,1.02487,1952.4,1952.3,1.03254813]
[1742564965375,2.45077,1952.4,1952.3,1.03254813]
[1742564966276,2.45077,1952.4,1952.3,0.00767813]
[1742564966575,3.15397,1952.4,1952.3,0.00767813]
[1742564966873,1.4259,1952.4,1952.3,1.03259813]
[1742564967081,2.45077,1952.4,1952.3,1.03259813]
[1742564967270,2.45077,1952.4,1952.3,0.00767813]
[1742564967477,4.045,1952.5,1952.4,1.02487]
[1742564967781,1.02487,1952.4,1952.3,1.03255813]
[1742564967974,2.36437,1952.4,1952.3,0.00767813]
[1742564968180,2.36437,1952.4,1952.3,1.03259813]
[1742564968181,1.3395,1952.4,1952.3,1.03259813]
[1742564968871,2.36437,1952.4,1952.3,1.03259813]
[1742564969375,6.47711213,1952.4,1952.3,0.00767813]
[1742564969570,6.38737,1952.4,1952.3,0.00767813]
[1742564969976,5.3625,1952.4,1952.3,1.03259813]
[1742564970178,6.38737,1952.4,1952.3,1.03259813]
[1742564970388,6.38737,1952.4,1952.3,0.00767813]
[1742564970880,6.47711192,1952.4,1952.3,0.00767813]
[1742564971371,7.95224192,1952.4,1951.5,2.56336]
[1742564971580,1.02501,1952.2,1952.0,1.02505]
[1742564971876,6.46252,1952.1,1951.9,1.02509]
[1742564972174,1.02508,1952.0,1951.9,1.02509]
[1742564972380,1.3855,1952.0,1951.9,1.02509]
[1742564972773,5.3925,1952.0,1951.9,1.02509]
[1742564973079,1.3855,1952.0,1951.9,1.02509]
[1742564973380,5.3895,1952.0,1951.9,1.02509]
[1742564973580,4.004,1952.0,1951.9,1.02509]
[1742564974376,3.998,1952.3,1951.8,3.21291878]
[1742564974582,3.998,1952.3,1952.2,1.02497]
[1742564974781,3.996,1952.5,1952.1,5.7703]
[1742564974977,3.996,1952.5,1952.4,1.02487]
[1742564975177,0.00767813,1952.7,1952.6,1.02476]
[1742564975389,0.00767813,1952.7,1952.3,5.77005]
[1742564975390,1.02483,1952.5,1952.3,3.2078]
[1742564975681,1.02492,1952.3,1952.2,2.37384]
[1742564976081,1.02492,1952.3,1952.2,1.02494]
[1742564976279,1.02499,1952.2,1952.1,1.02498]
[1742564976480,1.3347,1952.4,1952.0,5.77049]
[1742564976676,2.35959,1952.4,1952.3,1.02492]
[1742564976983,1.025,1952.2,1952.1,1.02498]
[1742564977176,1.3347,1952.4,1952.1,3.2078]
[1742564977485,1.3347,1952.4,1952.3,4.23272]
[1742564977685,2.35957,1952.4,1952.3,4.23272]
[1742564978180,1.3347,1952.4,1952.3,4.23272]
[1742564978381,1.02483,1952.5,1952.4,1.02484]
[1742564978589,2.34983,1952.5,1952.4,1.02484]
[1742564978783,1.02487,1952.4,1952.3,1.02488]
[1742564978976,1.325,1952.5,1952.4,1.02487]
[1742564979179,2.34981,1952.5,1952.4,1.02487]
[1742564979681,2.34981,1952.5,1952.4,4.23267]
[1742564979984,1.325,1952.5,1952.4,1.02487]
[1742564980186,1.325,1952.5,1952.4,4.23267]
[1742564980678,4.6628,1952.6,1952.5,1.02481]
[1742564980987,3.997,1952.6,1952.5,1.02481]
[1742564981786,0.00767813,1952.7,1952.6,1.02476]
[1742564981985,0.00767813,1952.7,1952.6,4.23256]
[1742564982281,0.00767813,1952.7,1952.4,3.2078]
[1742564982484,3.95195813,1952.7,1952.2,3.2078]
[1742564982691,1.0249,1952.4,1952.3,1.02491]
[1742564982981,1.02492,1952.3,1952.2,4.23273]
[1742564983173,3.981,1952.4,1952.3,1.02492]
[1742564983579,3.98867813,1952.7,1952.6,1.02476]
[1742564983778,0.00767813,1952.7,1952.6,4.23256]
[1742564984687,1.03238813,1952.7,1952.6,4.23256]
[1742564985080,0.00767813,1952.7,1952.6,4.23256]
[1742564985283,2.56947813,1952.7,1952.2,3.2078]
[1742564985488,2.56947813,1952.7,1952.3,1.02492]
[1742564985489,1.02487,1952.4,1952.3,1.02492]
[1742564985792,1.02492,1952.3,1952.2,4.4983]
[1742564985991,2.41852,1952.3,1952.2,1.2905]
[1742564986594,2.41852,1952.3,1952.2,2.31547]
[1742564986789,1.3936,1952.3,1952.2,2.31547]
[1742564986992,3.973,1952.4,1952.3,1.02492]
[1742564987187,4.6587,1952.6,1952.5,1.02481]
[1742564987385,3.968,1952.6,1952.5,1.02481]
[1742564987586,4.99276,1952.6,1952.5,1.02481]
[1742564987894,5.3653,1952.6,1952.5,1.02481]
[1742564988084,6.39006,1952.6,1952.5,1.02481]
[1742564989094,5.3653,1952.6,1952.5,1.02481]
[1742564989296,6.39006,1952.6,1952.5,1.02481]
[1742564989895,4.98741813,1952.7,1952.6,1.02476]
[1742564990091,4.98741813,1952.7,1952.6,2.37356]
[1742564990397,1.02476,1952.6,1952.5,1.02479]
[1742564990588,2.45086,1952.6,1952.5,1.02479]
[1742564990988,3.96267813,1952.7,1952.6,1.02476]
[1742564991291,3.96267813,1952.7,1952.6,4.23256]
[1742564992097,4.98738813,1952.7,1952.6,3.2078]
[1742564992282,4.98738813,1952.7,1952.6,4.23256]
[1742564992794,0.00767813,1952.7,1952.6,4.23256]
[1742564994098,5.76869,1953.4,1952.6,5.7078]
[1742564994398,2.38059,1953.2,1953.1,1.02447]
[1742564994597,1.0245,1953.1,1953.0,2.37162]
[1742564994794,1.0245,1953.1,1953.0,43.17162]
[1742564994995,7.53283675,1953.2,1952.7,1.02466]
[1742564995186,2.7186,1953.0,1952.7,1.3471]
[1742564995395,1.0246,1952.9,1952.8,0.00767813]
[1742564995591,2.3807,1952.9,1952.8,1.03233813]
[1742564995793,1.3561,1952.9,1952.8,1.03233813]
[1742564996095,4.97017813,1953.1,1953.0,1.02455]
[1742564996287,4.97017813,1953.1,1952.8,5.77701813]
[1742564996288,1.02455,1953.0,1952.9,1.4063]
[1742564996488,1.02455,1953.0,1952.8,1.03229813]
[1742564996489,1.0246,1952.9,1952.8,0.00767813]
[1742564996998,1.0246,1952.9,1952.8,1.03233813]
[1742564997193,2.368,1953.0,1952.9,1.0246]
[1742564997392,2.36795,1953.0,1952.9,2.4309]
[1742564997691,1.0246,1952.9,1952.8,0.00767813]
[1742564997900,2.368,1952.9,1952.8,0.00767813]
[1742564998197,3.0703,1952.9,1952.8,0.00767813]
[1742564998398,3.0703,1952.9,1952.8,1.03233813]
[1742564998693,3.0703,1952.9,1952.8,0.00767813]
[1742564999098,3.0703,1952.9,1952.8,1.03233813]
[1742564999289,3.0703,1952.9,1952.8,0.00767813]
[1742564999692,2.56168,1952.8,1952.2,5.77023]
[1742564999899,6.31204,1952.7,1952.6,1.02476]
[1742565000201,3.936,1952.7,1952.6,4.23256]
[1742565000501,2.37596,1952.8,1952.7,1.02471]
[1742565000896,0.00767813,1953.1,1952.7,3.2078]
[1742565001092,1.0246,1952.9,1952.8,1.4122]
[1742565001298,1.02471,1952.7,1952.6,0.00511878]
[1742565001605,4.99171,1952.7,1952.6,0.00511878]
[1742565001992,6.43273782,1952.7,1952.6,0.00511878]
[1742565003706,6.43273859,1952.7,1952.6,0.00511878]
[1742565004304,6.43273859,1952.7,1952.6,0.00149287]
[1742565004494,9.8463259,1952.7,1952.6,0.00149287]
[1742565004805,1.02518,1951.8,1951.7,4.23302]
[1742565005102,4.98018,1951.8,1951.7,3.2078]
[1742565005305,1.02518,1951.8,1951.7,1.02523]
[1742565005508,1.02523,1951.7,1951.6,1.02525]
[1742565005690,1.4055,1951.7,1951.6,1.02525]
[1742565006095,1.4055,1951.7,1951.3,3.2078]
[1742565006296,1.02542,1951.4,1951.3,1.02544]
[1742565006499,1.02542,1951.4,1951.0,7.0946]
[1742565006500,5.00843,1951.4,1951.2,1.02547]
[1742565006896,5.00843,1951.4,1951.1,0.7116]
[1742565007093,5.00843,1951.4,1951.2,1.0255]
[1742565007301,1.02544,1951.3,1951.1,1.73712]
[1742565007504,2.43094,1951.3,1951.2,1.0255]
[1742565007700,1.4055,1951.3,1951.1,1.73711]
[1742565008003,1.02566,1950.9,1950.8,3.2078]
[1742565008207,4.99866,1950.9,1950.8,3.2078]
[1742565008395,3.973,1950.9,1950.8,4.23351]
[1742565008591,4.99866,1950.9,1950.8,3.2078]
[1742565009195,1.02571,1950.8,1950.7,1.02575]
[1742565009407,1.02571,1950.8,1950.7,3.2078]
[1742565009803,2.37711,1950.8,1950.7,3.2078]
[1742565009998,2.37711,1950.8,1950.4,0.7116]
[1742565009999,1.3514,1950.8,1950.4,0.7116]
[1742565010195,2.65423612,1950.7,1950.2,1.02601]
[1742565010392,5.3214,1950.6,1950.3,3.2078]
[1742565010593,5.3214,1950.6,1950.5,4.23367]
[1742565010794,3.98267813,1950.8,1950.7,1.02576]
[1742565011101,3.98267813,1950.8,1950.7,4.23356]
[1742565011297,3.98267813,1950.8,1950.7,1.02576]
[1742565011601,3.98167813,1950.8,1950.7,4.23356]
[1742565011801,3.98167813,1950.8,1950.7,1.02576]
[1742565012198,5.27687813,1950.8,1950.7,1.02576]
[1742565012709,3.98167813,1950.8,1950.7,4.23356]
[1742565012909,0.00767813,1950.8,1950.7,4.23356]
[1742565014006,1.3094,1951.4,1950.7,5.7078]
[1742565014200,5.1244,1952.4,1951.4,1.02539]
[1742565014201,3.976,1951.5,1951.4,1.02539]
[1742565014605,3.976,1951.5,1951.4,41.82539]
[1742565014808,1.3094,1951.8,1951.4,44.0078]
[1742565015001,2.43802,1951.8,1951.6,1.02526]
[1742565015203,1.42047813,1951.8,1951.7,1.02523]
[1742565015421,0.00767813,1951.8,1951.7,1.02523]
[1742565015903,1.02526,1951.7,1951.6,4.23309]
[1742565016103,1.02523,1951.7,1951.6,3.2078]
[1742565016401,0.08978143,1951.7,1951.4,44.01547813]
[1742565016603,3.978,1951.6,1951.5,1.02534]
[1742565018004,5.387,1951.6,1951.5,1.02534]
[1742565018509,3.978,1951.6,1951.5,1.02534]
[1742565020312,3.97,1952.1,1951.5,2.5]
[1742565020607,3.971,1952.4,1952.3,1.02488]
[1742565020811,1.02492,1952.3,1952.2,3.2078]
[1742565021013,2.31342,1952.3,1952.2,3.2078]
[1742565021307,1.37824779,1952.3,1951.8,3.2078]
[1742565021511,1.2885,1952.3,1952.0,1.02506]
[1742565021713,1.025,1952.2,1952.0,1.02506]
[1742565021916,5.2575,1952.1,1952.0,1.02506]
[1742565022112,3.969,1952.1,1952.0,4.23286]
[1742565022611,3.971,1952.3,1952.2,1.02497]
[1742565022811,5.2595,1952.3,1952.2,1.02497]
[1742565023010,3.971,1952.3,1952.2,1.02497]
[1742565023214,3.97467813,1952.4,1952.3,1.02492]
[1742565023426,3.97467813,1952.4,1952.3,2.32172]
[1742565024407,0.00767813,1952.4,1952.3,2.32172]
[1742565024713,3.964,1952.7,1952.6,1.02476]
[1742565024912,3.964,1952.7,1952.6,4.23256]
[1742565025111,3.963,1952.9,1952.8,1.02462]
[1742565025815,1.38927813,1953.0,1952.9,1.0246]
[1742565026120,3.96567813,1953.0,1952.9,1.0246]
[1742565026615,3.96567813,1953.0,1952.9,2.3715]
[1742565027010,3.96567813,1953.0,1952.8,3.2078]
[1742565027226,3.96567813,1953.0,1952.7,0.00767813]
[1742565027227,1.02466,1952.8,1952.7,0.00767813]
[1742565027817,1.3118,1952.8,1952.7,1.03238813]
[1742565028626,0.00767813,1953.0,1952.9,1.0246]
[1742565028820,4.98024813,1953.0,1952.8,2.31442]
[1742565029217,1.0246,1952.9,1952.8,1.02462]
[1742565029416,1.02466,1952.8,1952.7,0.00767813]
[1742565029616,1.02484,1952.5,1952.2,0.6875]
[1742565029926,3.948,1952.4,1952.3,1.02492]
[1742565030127,3.948,1952.4,1952.3,2.43582]
[1742565030523,3.948,1952.4,1952.2,1.02494]
[1742565030731,1.3381,1952.3,1952.2,0.00767813]
[1742565030920,2.45277248,1952.3,1952.2,0.00767813]
[1742565031119,1.02518,1951.8,1951.6,1.02527]
[1742565031320,3.947,1951.8,1951.7,1.02523]
[1742565031629,3.947,1951.8,1951.7,2.43613]
[1742565031822,3.947,1951.8,1951.7,1.4109]
[1742565031823,6.31028,1951.8,1951.7,1.4109]
[1742565032017,6.31028,1951.8,1951.4,7.14644]
[1742565032018,5.2851,1951.8,1951.4,3.2078]
[1742565032222,1.02532,1951.6,1951.3,4.6187]
[1742565032530,6.30844,1951.5,1951.4,4.24081813]
[1742565032725,6.30844,1951.5,1951.4,0.00767813]
[1742565033820,6.30844,1951.5,1951.4,1.03306813]
[1742565034021,5.2831,1951.5,1951.4,1.03306813]
[1742565034332,6.30844,1951.5,1951.4,1.03306813]
[1742565034529,5.2831,1951.5,1951.4,1.03306813]
[1742565034831,0.6679,1951.7,1951.4,1.03306813]
[1742565034832,3.938,1951.8,1951.7,1.02523]
[1742565035026,1.03285813,1951.9,1951.4,5.77890813]
[1742565035027,0.00767813,1951.9,1951.8,1.02518]
[1742565035328,3.94567813,1951.9,1951.8,1.02518]
[1742565036132,0.00767813,1951.9,1951.8,45.03298]
[1742565036322,3.8552,1952.5,1952.0,1.02508]
[1742565036626,1.02495,1952.3,1952.2,1.02495]
[1742565036824,5.3515,1952.4,1952.0,1.02503]
[1742565037016,1.02507,1952.1,1952.0,1.02508]
[1742565037220,3.931,1952.1,1951.8,44.0078]
[1742565037424,1.02518,1951.8,1951.7,2.36159]
[1742565037622,1.02515,1951.9,1951.8,1.02517]
[1742565037821,1.02515,1951.9,1951.8,41.82517]
[1742565038131,1.02515,1951.9,1951.8,40.8]
[1742565038326,2.0835,1952.0,1951.8,1.02518]
[1742565038522,1.02517,1951.9,1951.7,5.56939]
[1742565038722,1.4185,1951.8,1951.7,5.56939]
[1742565039023,0.68987813,1952.2,1952.0,1.02505]
[1742565039225,5.2579,1952.1,1952.0,1.02505]
[1742565039624,5.2579,1952.1,1952.0,4.23285]
[1742565039625,3.924,1952.1,1952.0,4.23285]
[1742565039819,0.00767813,1952.2,1952.1,1.02502]
[1742565040131,1.02502,1952.1,1952.0,45.03284]
[1742565040331,2.36658813,1952.2,1952.1,1.02502]
[1742565040525,0.00767813,1952.2,1952.1,1.02502]
[1742565041623,0.00767813,1952.2,1952.1,1.71002]
[1742565044534,3.91167813,1952.2,1952.1,1.02502]
[1742565044935,4.93668813,1952.2,1952.1,1.02502]
[1742565045127,1.02502,1952.1,1952.0,5.53455]
[1742565045328,1.02502,1952.1,1952.0,1.02508]
[1742565045329,2.42402,1952.1,1952.0,1.02508]
[1742565045733,3.91167813,1952.2,1952.1,1.02502]
[1742565045935,3.91167813,1952.2,1952.1,4.23282]
[1742565046336,0.00767813,1952.2,1952.1,45.03282]
[1742565047837,1.03264813,1952.2,1952.1,41.82502]
[1742565048034,0.00767813,1952.2,1952.1,1.02502]